[Event "Live Chess"]
[Site "Chess.com"]
[Date "2010.12.03"]
[Round "-"]
[White "sep76golf"]
[Black "hipposcottimus"]
[Result "0-1"]
[CurrentPosition "4r1k1/pp4pp/8/P7/3Bb3/4Q1P1/6qP/2RR2K1 w - -"]
[Timezone "UTC"]
[ECO "D10"]
[ECOUrl "https://www.chess.com/openings/Slav-Defense-3.Nc3"]
[UTCDate "2010.12.03"]
[UTCTime "19:55:25"]
[WhiteElo "1667"]
[BlackElo "1636"]
[TimeControl "60"]
[Termination "hipposcottimus won by checkmate"]
[StartTime "19:55:25"]
[EndDate "2010.12.03"]
[EndTime "19:57:06"]
[Link "https://www.chess.com/game/live/73735140"]

1. d4 {[%clk 0:01:00]} 1... d5 {[%clk 0:01:00]} 2. c4 {[%clk 0:01:00]} 2... c6 {[%clk 0:00:59.8]} 3. Nc3 {[%clk 0:01:00]} 3... Nd7 {[%clk 0:00:59.1]} 4. Nf3 {[%clk 0:01:00]} 4... e6 {[%clk 0:00:58.6]} 5. e3 {[%clk 0:01:00]} 5... Ngf6 {[%clk 0:00:58.2]} 6. cxd5 {[%clk 0:01:00]} 6... Bb4 {[%clk 0:00:57.3]} 7. Bd3 {[%clk 0:00:59.2]} 7... Bxc3+ {[%clk 0:00:56.2]} 8. bxc3 {[%clk 0:00:57.4]} 8... cxd5 {[%clk 0:00:55.9]} 9. O-O {[%clk 0:00:54.5]} 9... O-O {[%clk 0:00:55.6]} 10. a4 {[%clk 0:00:53.3]} 10... Re8 {[%clk 0:00:54.2]} 11. Ba3 {[%clk 0:00:49.5]} 11... e5 {[%clk 0:00:53.9]} 12. Nxe5 {[%clk 0:00:48.2]} 12... Nxe5 {[%clk 0:00:53.5]} 13. dxe5 {[%clk 0:00:46.7]} 13... Rxe5 {[%clk 0:00:53.2]} 14. Qc2 {[%clk 0:00:45]} 14... Qc7 {[%clk 0:00:46.2]} 15. c4 {[%clk 0:00:38.5]} 15... Bd7 {[%clk 0:00:45.2]} 16. Bb2 {[%clk 0:00:36.3]} 16... Bc6 {[%clk 0:00:43.5]} 17. Bxe5 {[%clk 0:00:34.6]} 17... dxc4 {[%clk 0:00:41.3]} 18. Bxf6 {[%clk 0:00:31.8]} 18... cxd3 {[%clk 0:00:40.2]} 19. Qxd3 {[%clk 0:00:25.8]} 19... Qb6 {[%clk 0:00:39.5]} 20. Bd4 {[%clk 0:00:23.5]} 20... Qc7 {[%clk 0:00:37.4]} 21. a5 {[%clk 0:00:22.3]} 21... Qd6 {[%clk 0:00:36.3]} 22. Rfd1 {[%clk 0:00:18.6]} 22... Qh6 {[%clk 0:00:35.9]} 23. g3 {[%clk 0:00:14.7]} 23... Qh3 {[%clk 0:00:33.9]} 24. e4 {[%clk 0:00:13.9]} 24... f5 {[%clk 0:00:31.9]} 25. f3 {[%clk 0:00:12.8]} 25... fxe4 {[%clk 0:00:29.6]} 26. fxe4 {[%clk 0:00:12.8]} 26... Re8 {[%clk 0:00:29]} 27. Rac1 {[%clk 0:00:11.1]} 27... Bxe4 {[%clk 0:00:28.1]} 28. Qe3 {[%clk 0:00:07.1]} 28... Qg2# {[%clk 0:00:26]} 0-1

[Event "Live Chess"]
[Site "Chess.com"]
[Date "2010.12.03"]
[Round "-"]
[White "hipposcottimus"]
[Black "TALKinTRASH"]
[Result "1-0"]
[CurrentPosition "6k1/1q4pp/8/7P/q4PPK/8/8/8 b - -"]
[Timezone "UTC"]
[ECO "C41"]
[ECOUrl "https://www.chess.com/openings/Philidor-Defense-3.Bc4-Be7-4.d4"]
[UTCDate "2010.12.03"]
[UTCTime "19:51:51"]
[WhiteElo "1627"]
[BlackElo "1670"]
[TimeControl "60"]
[Termination "hipposcottimus won on time"]
[StartTime "19:51:51"]
[EndDate "2010.12.03"]
[EndTime "19:54:05"]
[Link "https://www.chess.com/game/live/73734201"]

1. e4 {[%clk 0:01:00]} 1... e5 {[%clk 0:01:00]} 2. Nf3 {[%clk 0:00:59.8]} 2... d6 {[%clk 0:00:59.7]} 3. Bc4 {[%clk 0:00:59.3]} 3... Be7 {[%clk 0:00:59.7]} 4. d4 {[%clk 0:00:58.8]} 4... Nf6 {[%clk 0:00:58.9]} 5. dxe5 {[%clk 0:00:57.8]} 5... dxe5 {[%clk 0:00:58.9]} 6. Nc3 {[%clk 0:00:57]} 6... Qxd1+ {[%clk 0:00:56.9]} 7. Nxd1 {[%clk 0:00:56.8]} 7... O-O {[%clk 0:00:56]} 8. O-O {[%clk 0:00:56]} 8... c6 {[%clk 0:00:54.2]} 9. Re1 {[%clk 0:00:55.5]} 9... b5 {[%clk 0:00:53.3]} 10. Bb3 {[%clk 0:00:52.5]} 10... a5 {[%clk 0:00:53.3]} 11. c4 {[%clk 0:00:52]} 11... a4 {[%clk 0:00:52.3]} 12. Bc2 {[%clk 0:00:51.5]} 12... Ba6 {[%clk 0:00:50.2]} 13. cxb5 {[%clk 0:00:49.8]} 13... Bxb5 {[%clk 0:00:49.2]} 14. Nc3 {[%clk 0:00:49]} 14... Na6 {[%clk 0:00:47]} 15. Nxb5 {[%clk 0:00:46.8]} 15... cxb5 {[%clk 0:00:47]} 16. Bd3 {[%clk 0:00:46.6]} 16... Nc7 {[%clk 0:00:44.9]} 17. Be3 {[%clk 0:00:45.8]} 17... Rad8 {[%clk 0:00:43.8]} 18. Bb6 {[%clk 0:00:43.3]} 18... Rxd3 {[%clk 0:00:41.9]} 19. Bxc7 {[%clk 0:00:43]} 19... Bb4 {[%clk 0:00:38.9]} 20. Re2 {[%clk 0:00:40.2]} 20... Rc8 {[%clk 0:00:35.4]} 21. Bxe5 {[%clk 0:00:38.4]} 21... Nd7 {[%clk 0:00:30.5]} 22. Bg3 {[%clk 0:00:33.8]} 22... f6 {[%clk 0:00:27]} 23. e5 {[%clk 0:00:32.4]} 23... fxe5 {[%clk 0:00:25.3]} 24. Bxe5 {[%clk 0:00:31.7]} 24... Nxe5 {[%clk 0:00:24]} 25. Nxe5 {[%clk 0:00:31.4]} 25... Re8 {[%clk 0:00:20.2]} 26. Nxd3 {[%clk 0:00:29.3]} 26... Rxe2 {[%clk 0:00:17.8]} 27. Nxb4 {[%clk 0:00:28.5]} 27... Rxb2 {[%clk 0:00:17.4]} 28. Nd5 {[%clk 0:00:26.8]} 28... Rd2 {[%clk 0:00:15.9]} 29. Nc7 {[%clk 0:00:25.8]} 29... Rb2 {[%clk 0:00:14.9]} 30. a3 {[%clk 0:00:24.2]} 30... b4 {[%clk 0:00:12.8]} 31. f3 {[%clk 0:00:23.6]} 31... b3 {[%clk 0:00:09.8]} 32. h3 {[%clk 0:00:22.4]} 32... Rc2 {[%clk 0:00:08.6]} 33. Na6 {[%clk 0:00:20.2]} 33... b2 {[%clk 0:00:08.6]} 34. Rb1 {[%clk 0:00:19]} 34... Rc1+ {[%clk 0:00:08.2]} 35. Kf2 {[%clk 0:00:17.8]} 35... Rxb1 {[%clk 0:00:06.9]} 36. Nc5 {[%clk 0:00:16]} 36... Rf1+ {[%clk 0:00:05.6]} 37. Kxf1 {[%clk 0:00:13.5]} 37... b1=Q+ {[%clk 0:00:05.6]} 38. Kf2 {[%clk 0:00:13.2]} 38... Qb6 {[%clk 0:00:04.4]} 39. Kg3 {[%clk 0:00:12.8]} 39... Qxc5 {[%clk 0:00:04.4]} 40. h4 {[%clk 0:00:12.5]} 40... Qxa3 {[%clk 0:00:04.4]} 41. Kh3 {[%clk 0:00:12.3]} 41... Qb3 {[%clk 0:00:04.4]} 42. Kg4 {[%clk 0:00:11.1]} 42... a3 {[%clk 0:00:04.4]} 43. g3 {[%clk 0:00:10.8]} 43... a2 {[%clk 0:00:04.4]} 44. h5 {[%clk 0:00:10.6]} 44... a1=Q {[%clk 0:00:01.7]} 45. f4 {[%clk 0:00:10.4]} 45... Qaa4 {[%clk 0:00:00.9]} 46. Kh4 {[%clk 0:00:10]} 46... Qb7 {[%clk 0:00:00.3]} 47. g4 {[%clk 0:00:09.7]} 1-0

[Event "Live Chess"]
[Site "Chess.com"]
[Date "2010.12.03"]
[Round "-"]
[White "knigthshadow57"]
[Black "hipposcottimus"]
[Result "1-0"]
[CurrentPosition "R6k/6pp/P3r3/8/2b5/1p4P1/1P2PP1P/3BK3 b - -"]
[Timezone "UTC"]
[ECO "A00"]
[ECOUrl "https://www.chess.com/openings/Mieses-Opening-1...d5-2.g3"]
[UTCDate "2010.12.03"]
[UTCTime "19:47:03"]
[WhiteElo "1706"]
[BlackElo "1618"]
[TimeControl "60+2"]
[Termination "knigthshadow57 won by resignation"]
[StartTime "19:47:03"]
[EndDate "2010.12.03"]
[EndTime "19:51:19"]
[Link "https://www.chess.com/game/live/73732957"]

1. d3 {[%clk 0:01:00]} 1... d5 {[%clk 0:01:00]} 2. g3 {[%clk 0:01:00.8]} 2... e5 {[%clk 0:01:00.6]} 3. Bg2 {[%clk 0:01:01.8]} 3... Nd7 {[%clk 0:01:01.4]} 4. Bxd5 {[%clk 0:00:59.6]} 4... Nb6 {[%clk 0:01:02.5]} 5. Bg2 {[%clk 0:00:59.3]} 5... f5 {[%clk 0:01:00.4]} 6. Nf3 {[%clk 0:00:54.3]} 6... Bd6 {[%clk 0:00:59.7]} 7. O-O {[%clk 0:00:50]} 7... Nf6 {[%clk 0:00:59.4]} 8. c4 {[%clk 0:00:51]} 8... e4 {[%clk 0:00:59.6]} 9. Nd4 {[%clk 0:00:42.9]} 9... O-O {[%clk 0:00:56]} 10. Nb5 {[%clk 0:00:41.9]} 10... a6 {[%clk 0:00:37.3]} 11. Nxd6 {[%clk 0:00:41.2]} 11... cxd6 {[%clk 0:00:39]} 12. Bg5 {[%clk 0:00:37]} 12... d5 {[%clk 0:00:35.8]} 13. cxd5 {[%clk 0:00:33.8]} 13... Nbxd5 {[%clk 0:00:34.8]} 14. Qb3 {[%clk 0:00:33.8]} 14... Be6 {[%clk 0:00:24.8]} 15. Nc3 {[%clk 0:00:30.8]} 15... Qd6 {[%clk 0:00:21.4]} 16. Bxf6 {[%clk 0:00:23.5]} 16... Nxf6 {[%clk 0:00:21.8]} 17. Qc2 {[%clk 0:00:20.9]} 17... Rad8 {[%clk 0:00:22.3]} 18. Rad1 {[%clk 0:00:19.4]} 18... Qc6 {[%clk 0:00:22.6]} 19. dxe4 {[%clk 0:00:17.7]} 19... fxe4 {[%clk 0:00:23.2]} 20. Qa4 {[%clk 0:00:12.8]} 20... Qe8 {[%clk 0:00:21.9]} 21. Qxe8 {[%clk 0:00:12.5]} 21... Rdxe8 {[%clk 0:00:22.9]} 22. Nxe4 {[%clk 0:00:13.3]} 22... Bf5 {[%clk 0:00:20.8]} 23. Nxf6+ {[%clk 0:00:13.1]} 23... Rxf6 {[%clk 0:00:22.6]} 24. Bd5+ {[%clk 0:00:11.1]} 24... Kh8 {[%clk 0:00:23]} 25. Bb3 {[%clk 0:00:11.4]} 25... Ref8 {[%clk 0:00:24.2]} 26. Rd2 {[%clk 0:00:10]} 26... b6 {[%clk 0:00:25.6]} 27. Rfd1 {[%clk 0:00:10.9]} 27... b5 {[%clk 0:00:25.9]} 28. Rd8 {[%clk 0:00:11.3]} 28... a5 {[%clk 0:00:26.8]} 29. Rxf8+ {[%clk 0:00:12]} 29... Rxf8 {[%clk 0:00:28.5]} 30. Rd5 {[%clk 0:00:11.4]} 30... a4 {[%clk 0:00:29.9]} 31. Bd1 {[%clk 0:00:10]} 31... b4 {[%clk 0:00:31.6]} 32. a3 {[%clk 0:00:09.9]} 32... b3 {[%clk 0:00:32.5]} 33. Kf1 {[%clk 0:00:05.7]} 33... Be4 {[%clk 0:00:34.1]} 34. Rd4 {[%clk 0:00:05.9]} 34... Bf5 {[%clk 0:00:35]} 35. Ke1 {[%clk 0:00:06.9]} 35... Bg4 {[%clk 0:00:35.5]} 36. Rxa4 {[%clk 0:00:06.2]} 36... Re8 {[%clk 0:00:36.8]} 37. Ra7 {[%clk 0:00:06.1]} 37... Be6 {[%clk 0:00:37.6]} 38. a4 {[%clk 0:00:06.4]} 38... Bd5 {[%clk 0:00:38.5]} 39. a5 {[%clk 0:00:07.2]} 39... Bc4 {[%clk 0:00:39.6]} 40. a6 {[%clk 0:00:07.6]} 40... Re6 {[%clk 0:00:39.5]} 41. Ra8+ {[%clk 0:00:07.6]} 1-0

[Event "Live Chess"]
[Site "Chess.com"]
[Date "2010.12.03"]
[Round "-"]
[White "hipposcottimus"]
[Black "tongging"]
[Result "0-1"]
[CurrentPosition "r4rk1/p1p2p1p/1p4p1/3P4/2PbP3/3Bq3/PP4PP/R2RK3 w - -"]
[Timezone "UTC"]
[ECO "B00"]
[ECOUrl "https://www.chess.com/openings/Owens-Defense-2.d4-Bb7"]
[UTCDate "2010.12.03"]
[UTCTime "04:34:16"]
[WhiteElo "1618"]
[BlackElo "1492"]
[TimeControl "60"]
[Termination "tongging won on time"]
[StartTime "04:34:16"]
[EndDate "2010.12.03"]
[EndTime "04:35:46"]
[Link "https://www.chess.com/game/live/73531162"]

1. e4 {[%clk 0:01:00]} 1... b6 {[%clk 0:01:00]} 2. d4 {[%clk 0:00:58.5]} 2... Bb7 {[%clk 0:00:58.2]} 3. d5 {[%clk 0:00:57.3]} 3... e5 {[%clk 0:00:57]} 4. c4 {[%clk 0:00:56]} 4... d6 {[%clk 0:00:55.1]} 5. Be3 {[%clk 0:00:49.1]} 5... Nf6 {[%clk 0:00:54.3]} 6. Nc3 {[%clk 0:00:46.7]} 6... g6 {[%clk 0:00:53.4]} 7. f4 {[%clk 0:00:45.8]} 7... Bg7 {[%clk 0:00:52.9]} 8. fxe5 {[%clk 0:00:44.8]} 8... dxe5 {[%clk 0:00:52]} 9. Nf3 {[%clk 0:00:43.4]} 9... Nbd7 {[%clk 0:00:51.1]} 10. Bf2 {[%clk 0:00:43]} 10... O-O {[%clk 0:00:50.1]} 11. Bg3 {[%clk 0:00:42.1]} 11... Bc8 {[%clk 0:00:47.6]} 12. Nxe5 {[%clk 0:00:39.8]} 12... Nxe5 {[%clk 0:00:46.3]} 13. Bxe5 {[%clk 0:00:39.5]} 13... Qe7 {[%clk 0:00:44.5]} 14. Bxf6 {[%clk 0:00:30]} 14... Bxf6 {[%clk 0:00:42.3]} 15. Bd3 {[%clk 0:00:29.7]} 15... Bxc3+ {[%clk 0:00:39.7]} 16. Ke2 {[%clk 0:00:26.6]} 16... Bg4+ {[%clk 0:00:37.6]} 17. Ke3 {[%clk 0:00:24.5]} 17... Bxd1 {[%clk 0:00:36.7]} 18. Rhxd1 {[%clk 0:00:22.6]} 18... Be5 {[%clk 0:00:35.8]} 19. Kf3 {[%clk 0:00:21.1]} 19... Qg5 {[%clk 0:00:34.8]} 20. Kf2 {[%clk 0:00:19.6]} 20... Bd4+ {[%clk 0:00:30.4]} 21. Kf1 {[%clk 0:00:16.7]} 21... Qf4+ {[%clk 0:00:27.8]} 22. Ke1 {[%clk 0:00:15.2]} 22... Qe3+ {[%clk 0:00:26.7]} 0-1

[Event "Live Chess"]
[Site "Chess.com"]
[Date "2010.12.03"]
[Round "-"]
[White "tongging"]
[Black "hipposcottimus"]
[Result "1-0"]
[CurrentPosition "8/p3R2p/2kR4/1p6/3p4/BP6/P1PP3P/2K5 b - -"]
[Timezone "UTC"]
[ECO "A01"]
[ECOUrl "https://www.chess.com/openings/Nimzowitsch-Larsen-Attack-Classical-Variation-2.Bb2"]
[UTCDate "2010.12.03"]
[UTCTime "04:31:39"]
[WhiteElo "1480"]
[BlackElo "1628"]
[TimeControl "60"]
[Termination "tongging won by checkmate"]
[StartTime "04:31:39"]
[EndDate "2010.12.03"]
[EndTime "04:33:45"]
[Link "https://www.chess.com/game/live/73530697"]

1. b3 {[%clk 0:01:00]} 1... d5 {[%clk 0:01:00]} 2. Bb2 {[%clk 0:00:57.8]} 2... d4 {[%clk 0:00:59.2]} 3. Nf3 {[%clk 0:00:53.5]} 3... c5 {[%clk 0:00:57.9]} 4. Na3 {[%clk 0:00:50.6]} 4... Nc6 {[%clk 0:00:53.1]} 5. Nc4 {[%clk 0:00:49]} 5... b5 {[%clk 0:00:48.7]} 6. Nce5 {[%clk 0:00:45.4]} 6... Bb7 {[%clk 0:00:48.2]} 7. Nxc6 {[%clk 0:00:42.5]} 7... Bxc6 {[%clk 0:00:47.8]} 8. e3 {[%clk 0:00:40.6]} 8... f6 {[%clk 0:00:46.9]} 9. exd4 {[%clk 0:00:38.8]} 9... Bxf3 {[%clk 0:00:46.5]} 10. Qxf3 {[%clk 0:00:37.1]} 10... cxd4 {[%clk 0:00:45.9]} 11. O-O-O {[%clk 0:00:34.5]} 11... e5 {[%clk 0:00:45]} 12. Qc6+ {[%clk 0:00:32.5]} 12... Qd7 {[%clk 0:00:42.6]} 13. Qxa8+ {[%clk 0:00:31.3]} 13... Ke7 {[%clk 0:00:40.2]} 14. Ba3+ {[%clk 0:00:28.5]} 14... Kf7 {[%clk 0:00:36.9]} 15. Qxf8+ {[%clk 0:00:26.8]} 15... Kg6 {[%clk 0:00:35.7]} 16. Bd3+ {[%clk 0:00:24.8]} 16... f5 {[%clk 0:00:34.7]} 17. Qxf5+ {[%clk 0:00:22.3]} 17... Qxf5 {[%clk 0:00:33.4]} 18. Bxf5+ {[%clk 0:00:20.9]} 18... Kxf5 {[%clk 0:00:32.6]} 19. g4+ {[%clk 0:00:18.3]} 19... Ke6 {[%clk 0:00:32]} 20. f4 {[%clk 0:00:16.4]} 20... Nf6 {[%clk 0:00:31]} 21. fxe5 {[%clk 0:00:14.6]} 21... Kxe5 {[%clk 0:00:30.7]} 22. Rde1+ {[%clk 0:00:13.3]} 22... Kf4 {[%clk 0:00:30.4]} 23. Rhf1+ {[%clk 0:00:11.9]} 23... Kxg4 {[%clk 0:00:29]} 24. Rg1+ {[%clk 0:00:09.7]} 24... Kf5 {[%clk 0:00:27.6]} 25. Rxg7 {[%clk 0:00:08.6]} 25... Nh5 {[%clk 0:00:24]} 26. Rf1+ {[%clk 0:00:07.1]} 26... Ke6 {[%clk 0:00:19.1]} 27. Re7+ {[%clk 0:00:06.3]} 27... Kd5 {[%clk 0:00:15.3]} 28. Rf5+ {[%clk 0:00:04.7]} 28... Kc6 {[%clk 0:00:13.9]} 29. Rxh5 {[%clk 0:00:03.3]} 29... Rd8 {[%clk 0:00:10.2]} 30. Rh6+ {[%clk 0:00:02.3]} 30... Rd6 {[%clk 0:00:09.2]} 31. Rxd6# {[%clk 0:00:01]} 1-0

[Event "Live Chess"]
[Site "Chess.com"]
[Date "2010.12.03"]
[Round "-"]
[White "hipposcottimus"]
[Black "tongging"]
[Result "1-0"]
[CurrentPosition "2k3r1/ppp4p/3p1R1p/8/5P2/6P1/PPP2RKP/4r3 b - -"]
[Timezone "UTC"]
[ECO "C41"]
[ECOUrl "https://www.chess.com/openings/Philidor-Defense-3.d4-Bg4-4.dxe5"]
[UTCDate "2010.12.03"]
[UTCTime "04:29:01"]
[WhiteElo "1639"]
[BlackElo "1467"]
[TimeControl "60"]
[Termination "hipposcottimus won on time"]
[StartTime "04:29:01"]
[EndDate "2010.12.03"]
[EndTime "04:31:12"]
[Link "https://www.chess.com/game/live/73530190"]

1. e4 {[%clk 0:01:00]} 1... e5 {[%clk 0:01:00]} 2. Nf3 {[%clk 0:00:58.3]} 2... d6 {[%clk 0:00:59.3]} 3. d4 {[%clk 0:00:56.6]} 3... Bg4 {[%clk 0:00:58.7]} 4. dxe5 {[%clk 0:00:54.1]} 4... Nc6 {[%clk 0:00:54.7]} 5. Nc3 {[%clk 0:00:48.2]} 5... Nxe5 {[%clk 0:00:48.1]} 6. Be2 {[%clk 0:00:47.9]} 6... Qf6 {[%clk 0:00:42.4]} 7. Nxe5 {[%clk 0:00:46.9]} 7... Bxe2 {[%clk 0:00:41.3]} 8. Ng4 {[%clk 0:00:34.6]} 8... Bxg4 {[%clk 0:00:38.4]} 9. Qxg4 {[%clk 0:00:32.9]} 9... Nh6 {[%clk 0:00:36.5]} 10. Qe2 {[%clk 0:00:26.4]} 10... O-O-O {[%clk 0:00:34.8]} 11. Nd5 {[%clk 0:00:26]} 11... Qe5 {[%clk 0:00:33.1]} 12. Bxh6 {[%clk 0:00:24.7]} 12... gxh6 {[%clk 0:00:31.5]} 13. O-O {[%clk 0:00:23.6]} 13... Rg8 {[%clk 0:00:29]} 14. f3 {[%clk 0:00:23.2]} 14... f5 {[%clk 0:00:24.5]} 15. Rae1 {[%clk 0:00:19.2]} 15... Qg7 {[%clk 0:00:20.9]} 16. Rf2 {[%clk 0:00:16.5]} 16... fxe4 {[%clk 0:00:19.7]} 17. Qxe4 {[%clk 0:00:15.4]} 17... Be7 {[%clk 0:00:17.1]} 18. Nf4 {[%clk 0:00:13.7]} 18... Bg5 {[%clk 0:00:14.2]} 19. Nh5 {[%clk 0:00:12.5]} 19... Qg6 {[%clk 0:00:12.4]} 20. f4 {[%clk 0:00:12.2]} 20... Qxe4 {[%clk 0:00:10.9]} 21. Rxe4 {[%clk 0:00:09.7]} 21... Bh4 {[%clk 0:00:10.2]} 22. g3 {[%clk 0:00:08.5]} 22... Be7 {[%clk 0:00:08.7]} 23. Re6 {[%clk 0:00:06.4]} 23... Rde8 {[%clk 0:00:07.5]} 24. Nf6 {[%clk 0:00:06.1]} 24... Bxf6 {[%clk 0:00:05]} 25. Rxf6 {[%clk 0:00:05.8]} 25... Re1+ {[%clk 0:00:03.9]} 26. Rf1 {[%clk 0:00:04.4]} 26... Re2 {[%clk 0:00:02.4]} 27. Rf2 {[%clk 0:00:03.5]} 27... Re1+ {[%clk 0:00:00.5]} 28. Kg2 {[%clk 0:00:02.8]} 1-0

[Event "Live Chess"]
[Site "Chess.com"]
[Date "2010.12.03"]
[Round "-"]
[White "akb23"]
[Black "hipposcottimus"]
[Result "1-0"]
[CurrentPosition "8/4k1pp/8/n4p2/8/1P2qP1P/P2pR2P/5K2 b - -"]
[Timezone "UTC"]
[ECO "A00"]
[ECOUrl "https://www.chess.com/openings/Saragossa-Opening"]
[UTCDate "2010.12.03"]
[UTCTime "04:25:21"]
[WhiteElo "1579"]
[BlackElo "1635"]
[TimeControl "60"]
[Termination "akb23 won on time"]
[StartTime "04:25:21"]
[EndDate "2010.12.03"]
[EndTime "04:27:23"]
[Link "https://www.chess.com/game/live/73529501"]

1. c3 {[%clk 0:01:00]} 1... c5 {[%clk 0:01:00]} 2. Nh3 {[%clk 0:01:00]} 2... d5 {[%clk 0:00:58.5]} 3. Qa4+ {[%clk 0:00:59.2]} 3... Nc6 {[%clk 0:00:56]} 4. Qb3 {[%clk 0:00:59.2]} 4... Bxh3 {[%clk 0:00:54.4]} 5. gxh3 {[%clk 0:00:57.7]} 5... f5 {[%clk 0:00:54.1]} 6. Qxb7 {[%clk 0:00:56.9]} 6... Na5 {[%clk 0:00:48]} 7. Qa6 {[%clk 0:00:54.6]} 7... Nf6 {[%clk 0:00:47.3]} 8. Qb5+ {[%clk 0:00:52.4]} 8... Nd7 {[%clk 0:00:44.2]} 9. Bg2 {[%clk 0:00:49.8]} 9... e6 {[%clk 0:00:42.5]} 10. c4 {[%clk 0:00:47.7]} 10... Rb8 {[%clk 0:00:38.6]} 11. Qa6 {[%clk 0:00:43.3]} 11... Rb6 {[%clk 0:00:33.7]} 12. Qxa7 {[%clk 0:00:41.7]} 12... Bd6 {[%clk 0:00:32]} 13. cxd5 {[%clk 0:00:40.9]} 13... O-O {[%clk 0:00:30.4]} 14. dxe6 {[%clk 0:00:39.5]} 14... Rb7 {[%clk 0:00:29.8]} 15. Qa6 {[%clk 0:00:36.1]} 15... Ne5 {[%clk 0:00:20.3]} 16. Qd3 {[%clk 0:00:36.1]} 16... c4 {[%clk 0:00:18.7]} 17. Bxb7 {[%clk 0:00:35.8]} 17... cxd3 {[%clk 0:00:16.8]} 18. e3 {[%clk 0:00:33.8]} 18... Qb8 {[%clk 0:00:16.5]} 19. Bg2 {[%clk 0:00:32.7]} 19... Qb4 {[%clk 0:00:14.6]} 20. Nc3 {[%clk 0:00:31.8]} 20... Nec4 {[%clk 0:00:12.9]} 21. b3 {[%clk 0:00:29.9]} 21... Na3 {[%clk 0:00:11.7]} 22. Bxa3 {[%clk 0:00:28.9]} 22... Qxa3 {[%clk 0:00:11.3]} 23. Rd1 {[%clk 0:00:28.9]} 23... Qb2 {[%clk 0:00:10.5]} 24. Rf1 {[%clk 0:00:27.5]} 24... Qc2 {[%clk 0:00:09.9]} 25. Bd5 {[%clk 0:00:26]} 25... Bb4 {[%clk 0:00:09.1]} 26. e7+ {[%clk 0:00:25]} 26... Rf7 {[%clk 0:00:05.7]} 27. Bxf7+ {[%clk 0:00:22.9]} 27... Kxf7 {[%clk 0:00:04.5]} 28. f3 {[%clk 0:00:22]} 28... Kxe7 {[%clk 0:00:04.1]} 29. Kf2 {[%clk 0:00:21.2]} 29... Bxc3 {[%clk 0:00:03.7]} 30. Kg1 {[%clk 0:00:19.2]} 30... Bxd2 {[%clk 0:00:02.4]} 31. Rxd2 {[%clk 0:00:18.5]} 31... Qxd2 {[%clk 0:00:01.6]} 32. Rf2 {[%clk 0:00:17.5]} 32... Qxe3 {[%clk 0:00:01.1]} 33. Kf1 {[%clk 0:00:16.4]} 33... d2 {[%clk 0:00:00.8]} 34. Re2 {[%clk 0:00:14.1]} 1-0

[Event "Live Chess"]
[Site "Chess.com"]
[Date "2010.12.03"]
[Round "-"]
[White "hipposcottimus"]
[Black "akb23"]
[Result "1-0"]
[CurrentPosition "4rk1r/p1Rn1Qpp/1p3n2/3B1p2/3P4/8/P5PP/R5K1 b - -"]
[Timezone "UTC"]
[ECO "A06"]
[ECOUrl "https://www.chess.com/openings/Reti-Opening-Tennison-Gambit"]
[UTCDate "2010.12.03"]
[UTCTime "04:23:24"]
[WhiteElo "1644"]
[BlackElo "1568"]
[TimeControl "60"]
[Termination "hipposcottimus won by checkmate"]
[StartTime "04:23:24"]
[EndDate "2010.12.03"]
[EndTime "04:25:03"]
[Link "https://www.chess.com/game/live/73529112"]

1. e4 {[%clk 0:01:00]} 1... d5 {[%clk 0:01:00]} 2. Nf3 {[%clk 0:00:59.7]} 2... dxe4 {[%clk 0:00:59.1]} 3. Ng5 {[%clk 0:00:59.4]} 3... f5 {[%clk 0:00:58.3]} 4. f3 {[%clk 0:00:58.4]} 4... exf3 {[%clk 0:00:57.1]} 5. Nxf3 {[%clk 0:00:57.4]} 5... e6 {[%clk 0:00:56]} 6. d3 {[%clk 0:00:57.1]} 6... b6 {[%clk 0:00:54.8]} 7. Nc3 {[%clk 0:00:56.9]} 7... Bb7 {[%clk 0:00:54.2]} 8. Bg5 {[%clk 0:00:55.9]} 8... Be7 {[%clk 0:00:51.8]} 9. Bxe7 {[%clk 0:00:53.8]} 9... Qxe7 {[%clk 0:00:50.6]} 10. Be2 {[%clk 0:00:53.5]} 10... Qb4 {[%clk 0:00:49]} 11. O-O {[%clk 0:00:48.1]} 11... Qxb2 {[%clk 0:00:48.2]} 12. Na4 {[%clk 0:00:47.4]} 12... Qa3 {[%clk 0:00:46.8]} 13. c4 {[%clk 0:00:42.1]} 13... Qd6 {[%clk 0:00:44.2]} 14. Nc3 {[%clk 0:00:39.2]} 14... Nd7 {[%clk 0:00:43.3]} 15. d4 {[%clk 0:00:36.7]} 15... Bxf3 {[%clk 0:00:40.9]} 16. Bxf3 {[%clk 0:00:35.5]} 16... Rd8 {[%clk 0:00:40.4]} 17. Nb5 {[%clk 0:00:33.1]} 17... Qb4 {[%clk 0:00:37.7]} 18. Nxc7+ {[%clk 0:00:30.3]} 18... Ke7 {[%clk 0:00:35.5]} 19. Re1 {[%clk 0:00:29.8]} 19... Qxc4 {[%clk 0:00:34.4]} 20. Rxe6+ {[%clk 0:00:27.8]} 20... Kf7 {[%clk 0:00:29.5]} 21. Bd5 {[%clk 0:00:27.4]} 21... Qxc7 {[%clk 0:00:24.8]} 22. Rc6+ {[%clk 0:00:24.1]} 22... Ke7 {[%clk 0:00:21.9]} 23. Rxc7 {[%clk 0:00:23.4]} 23... Nf6 {[%clk 0:00:21.2]} 24. Qe2+ {[%clk 0:00:22.3]} 24... Kf8 {[%clk 0:00:17.2]} 25. Qe6 {[%clk 0:00:18.8]} 25... Re8 {[%clk 0:00:16.2]} 26. Qf7# {[%clk 0:00:18]} 1-0

[Event "Live Chess"]
[Site "Chess.com"]
[Date "2010.12.03"]
[Round "-"]
[White "ez_one"]
[Black "hipposcottimus"]
[Result "1-0"]
[CurrentPosition "rnb1k2r/pp4pp/4p3/1B1p1p2/1b1PnP2/2B1PN2/PPQ3PP/RN3RK1 b kq -"]
[Timezone "UTC"]
[ECO "D00"]
[ECOUrl "https://www.chess.com/openings/Queens-Pawn-Opening-1...d5-2.c3"]
[UTCDate "2010.12.03"]
[UTCTime "04:22:42"]
[WhiteElo "1910"]
[BlackElo "1637"]
[TimeControl "60"]
[Termination "ez_one won by resignation"]
[StartTime "04:22:42"]
[EndDate "2010.12.03"]
[EndTime "04:23:13"]
[Link "https://www.chess.com/game/live/73528996"]

1. d4 {[%clk 0:01:00]} 1... d5 {[%clk 0:01:00]} 2. c3 {[%clk 0:00:58.2]} 2... c5 {[%clk 0:00:58.7]} 3. f4 {[%clk 0:00:56.1]} 3... cxd4 {[%clk 0:00:57]} 4. cxd4 {[%clk 0:00:55.7]} 4... Qa5+ {[%clk 0:00:56.3]} 5. Bd2 {[%clk 0:00:54.1]} 5... Qb6 {[%clk 0:00:56]} 6. Bc3 {[%clk 0:00:51.5]} 6... f5 {[%clk 0:00:55.7]} 7. e3 {[%clk 0:00:50.7]} 7... Nf6 {[%clk 0:00:55.2]} 8. Nf3 {[%clk 0:00:50.2]} 8... Ne4 {[%clk 0:00:54.7]} 9. Qc2 {[%clk 0:00:48.4]} 9... e6 {[%clk 0:00:53.2]} 10. Bd3 {[%clk 0:00:47.1]} 10... Bb4 {[%clk 0:00:52.9]} 11. O-O {[%clk 0:00:44]} 11... Qb5 {[%clk 0:00:52.5]} 12. Bxb5+ {[%clk 0:00:42.5]} 1-0